fUST/lending_fUST_20250125
["ID","MTS","AMOUNT","RATE_DAILY","PERIOD"]
[350290510,1737772238923,-500.0,0.00018091,2]
[350290512,1737772238932,-500.0,0.00018091,2]
[350290514,1737772238941,-500.0,0.00018091,2]
[350290516,1737772238955,-730.11,0.00018091,2]
[350290518,1737772238964,-1472.31,0.00018091,2]
[350290519,1737772238973,-151.0,0.00018091,2]
[350290522,1737772238983,-500.0,0.00018091,2]
[350290523,1737772238991,-151.0,0.00018091,2]
[350290526,1737772239001,-345.67538721,0.00018091,2]
[350290527,1737772239010,-500.0,0.00018091,2]
[350290529,1737772239019,-151.0,0.00018091,2]
[350290532,1737772239028,-790.34,0.00018091,2]
[350290533,1737772239037,-151.0,0.00018091,2]
[350290535,1737772239047,-158.421132,0.00018091,2]
[350290538,1737772239056,-158.73215,0.00018091,2]
[350290539,1737772239066,-500.0,0.00018091,2]
[350290541,1737772239075,-151.0,0.00018091,2]
[350290543,1737772239084,-151.0,0.00018091,2]
[350290545,1737772239094,-151.0,0.00018091,2]
[350290548,1737772239103,-151.0,0.00018091,2]
[350290550,1737772239112,-151.0,0.00018091,2]
[350290552,1737772239122,-153.126955,0.00018091,2]
[350290554,1737772239131,-500.0,0.00018091,2]
[350290555,1737772239141,-500.0,0.00018091,2]
[350290557,1737772239152,-938.85,0.00018091,2]
[350290559,1737772239162,-151.0,0.00018091,2]
[350290561,1737772239171,-500.0,0.00018091,2]
[350290563,1737772239180,-151.0,0.00018091,2]
[350290565,1737772239189,-151.0,0.00018091,2]
[350290567,1737772239198,-151.0,0.00018091,2]
[350290569,1737772239208,-3196.81,0.00018091,2]
[350290571,1737772239217,-407.27147596,0.00018091,2]
[350290574,1737772239227,-500.0,0.00018091,2]
[350290575,1737772239237,-500.0,0.00018091,2]
[350290578,1737772239246,-732.39,0.00018091,2]
[350290580,1737772239255,-15560.36,0.00018091,2]
[350290582,1737772239265,-247.462593,0.00018091,2]
[350290583,1737772239274,-247.462593,0.00018091,2]
[350290585,1737772239283,-500.0,0.00018091,2]
[350290587,1737772239293,-247.462593,0.00018091,2]
[350290589,1737772239302,-505.54474726,0.00018091,2]
[350290591,1737772239312,-247.462593,0.00018091,2]
[350290593,1737772239321,-247.462593,0.00018091,2]
[350290595,1737772239331,-247.462593,0.00018091,2]
[350290597,1737772239340,-1178.34,0.00018091,2]
[350290599,1737772239349,-151.0,0.00018091,2]
[350290601,1737772239358,-151.0,0.00018091,2]
[350290603,1737772239367,-151.0,0.00018091,2]
[350290605,1737772239376,-1458.69,0.00018091,2]
[350290607,1737772239385,-175.020805,0.00018091,2]
[350290609,1737772239395,-500.0,0.00018091,2]
[350290611,1737772239403,-185.783057,0.00018091,2]
[350290613,1737772239413,-185.783057,0.00018091,2]
[350290615,1737772239422,-185.783057,0.00018091,2]
[350290618,1737772239431,-13960.99806573,0.00018091,2]
[350290621,1737772239453,-11929.33102795,0.00018091,2]
[350290623,1737772239466,-4386.9978675,0.00018091,2]
[350290626,1737772239478,-3815.36511288,0.00018091,2]
[350290628,1737772239489,-9688.08792594,0.00018091,2]
[350290630,1737772239504,-250.12559,0.00018091,2]
[350290632,1737772239514,-250.12559,0.00018091,2]
[350290634,1737772239524,-250.12559,0.00018091,2]
[350290636,1737772239533,-185.783057,0.00018091,2]
[350290638,1737772239543,-185.783057,0.00018091,2]
[350290640,1737772239552,-185.783057,0.00018091,2]
[350290642,1737772239562,-250.12559,0.00018091,2]
[350290644,1737772239571,-250.12559,0.00018091,2]
[350290646,1737772239581,-250.12559,0.00018091,2]
[350290648,1737772239591,-500.0,0.00018091,2]
[350290650,1737772239601,-500.0,0.00018091,2]
[350290652,1737772239610,-678.73,0.00018091,2]
[350290654,1737772239620,-500.0,0.00018091,2]
[350290656,1737772239629,-151.0,0.00018091,2]
[350290658,1737772239638,-151.0,0.00018091,2]
[350290660,1737772239647,-151.0,0.00018091,2]
[350290662,1737772239656,-500.0,0.00018091,2]
[350290664,1737772239666,-1116.33,0.00018091,2]
[350290666,1737772239676,-615.31,0.00018091,2]
[350290668,1737772239685,-343.655061,0.00018091,2]
[350290670,1737772239695,-343.655061,0.00018091,2]
[350290672,1737772239704,-343.655061,0.00018091,2]
[350290674,1737772239713,-343.655061,0.00018091,2]
[350290676,1737772239723,-343.655061,0.00018091,2]
[350290678,1737772239735,-343.655061,0.00018091,2]
[350290680,1737772239744,-465.22779593,0.00018091,2]
[350290682,1737772239754,-343.655061,0.00018091,2]
[350290684,1737772239763,-343.655061,0.00018091,2]
[350290686,1737772239773,-343.655061,0.00018091,2]
[350290688,1737772239782,-302.99697997,0.00018091,2]
[350290690,1737772239795,-40.65808103,0.00018091,2]
[350290692,1737772239804,-746.14,0.00018091,2]
[350290694,1737772239815,-219.72816268,0.00018091,2]
[350290696,1737772239824,-505.4066359,0.00018091,2]
[350290698,1737772239834,-500.0,0.00018091,2]
[350290700,1737772239843,-151.0,0.00018091,2]
[350290702,1737772239852,-151.0,0.00018091,2]
[350290704,1737772239862,-151.0,0.00018091,2]
[350290706,1737772239871,-151.0,0.00018091,2]
[350290708,1737772239881,-151.0,0.00018091,2]
[350290710,1737772239890,-528.75,0.00018091,2]
[350290712,1737772239899,-501.05398757,0.00018091,2]
[350290714,1737772239909,-500.0,0.00018091,2]
[350290716,1737772239918,-156.9425379,0.00018091,2]
[350290759,1737772240369,-932.969154,0.00018091,2]
[350290760,1737772240379,-4.01698979,0.00018091,2]
[350290761,1737772240388,-286.79502682,0.00018092,2]
[350291021,1737772242838,-546.4,0.00018089,2]
[350291023,1737772242848,-3379.51632643,0.00018089,2]
[350291349,1737772245911,-1900.14367357,0.00018089,2]
[350291351,1737772245921,-500.0,0.0001809,2]
[350291353,1737772245930,-932.969154,0.00018091,2]
[350291355,1737772245940,-932.969154,0.00018091,2]
[350291357,1737772245950,-932.969154,0.00018091,2]
[350291360,1737772245959,-932.969154,0.00018091,2]
[350291362,1737772245969,-932.969154,0.00018091,2]
[350291364,1737772245978,-932.969154,0.00018091,2]
[350291366,1737772245987,-213.20497318,0.00018092,2]
[350291368,1737772245997,-512.95061355,0.00018092,2]
[350291370,1737772246006,-500.0,0.00018092,2]
[350291372,1737772246015,-500.0,0.00018092,2]
[350291374,1737772246024,-500.0,0.00018092,2]
[350291376,1737772246034,-500.0,0.00018092,2]
[350291378,1737772246044,-500.0,0.00018092,2]
[350291380,1737772246054,-479.0,0.00018092,2]
[350291382,1737772246063,-500.0,0.00018092,2]
[350291384,1737772246073,-500.0,0.00018092,2]
[350291386,1737772246082,-200.0,0.00018092,2]
[350291388,1737772246091,-508.12396719,0.00018092,2]
[350291390,1737772246100,-500.0,0.00018092,2]
[350291392,1737772246109,-500.0,0.00018092,2]
[350291394,1737772246119,-500.0,0.00018092,2]
[350291396,1737772246128,-506.14626764,0.00018092,2]
[350291398,1737772246138,-500.0,0.00018092,2]
[350291400,1737772246147,-500.0,0.00018092,2]
[350291402,1737772246156,-500.0,0.00018092,2]
[350291404,1737772246166,-500.0,0.00018092,2]
[350291406,1737772246175,-500.0,0.00018092,2]
[350291408,1737772246184,-500.0,0.00018092,2]
[350291410,1737772246193,-500.0,0.00018092,2]
[350291412,1737772246203,-505.75991918,0.00018092,2]
[350291414,1737772246212,-500.0,0.00018092,2]
[350291416,1737772246221,-500.0,0.00018092,2]
[350291418,1737772246231,-500.0,0.00018092,2]
[350291420,1737772246240,-500.0,0.00018092,2]
[350291422,1737772246250,-500.0,0.00018092,2]
[350291425,1737772246259,-500.0,0.00018092,2]
[350291427,1737772246269,-500.0,0.00018092,2]
[350291429,1737772246279,-754.59,0.00018092,2]
[350291431,1737772246288,-500.0,0.00018092,2]
[350291433,1737772246299,-500.0,0.00018092,2]
[350291435,1737772246308,-500.0,0.00018092,2]
[350291437,1737772246317,-502.40873226,0.00018092,2]
[350291439,1737772246327,-500.0,0.00018092,2]
[350291441,1737772246336,-500.0,0.00018092,2]
[350291443,1737772246346,-506.71530044,0.00018092,2]
[350291445,1737772246356,-500.0,0.00018092,2]
[350291447,1737772246366,-500.0,0.00018092,2]
[350291449,1737772246376,-500.0,0.00018092,2]
[350291451,1737772246385,-500.0,0.00018092,2]
[350291453,1737772246394,-500.0,0.00018092,2]
[350291455,1737772246403,-500.0,0.00018092,2]
[350291457,1737772246412,-500.0,0.00018092,2]
[350291459,1737772246423,-500.0,0.00018092,2]
[350291461,1737772246433,-500.0,0.00018092,2]
[350291463,1737772246442,-759.9,0.00018092,2]
[350291465,1737772246452,-514.22465246,0.00018092,2]
[350291467,1737772246461,-500.0,0.00018092,2]
[350291470,1737772246471,-500.0,0.00018092,2]
[350291472,1737772246480,-523.43506554,0.00018092,2]
[350291474,1737772246490,-500.0,0.00018092,2]
[350291476,1737772246499,-385.41167055,0.00018092,2]
[350291478,1737772246508,-151.0,0.00018092,2]
[350291480,1737772246517,-500.0,0.00018092,2]
[350291482,1737772246527,-151.0,0.00018092,2]
[350291484,1737772246536,-500.0,0.00018092,2]
[350291486,1737772246545,-500.0,0.00018092,2]
[350291488,1737772246556,-500.0,0.00018092,2]
[350291490,1737772246566,-152.390082,0.00018092,2]
[350291492,1737772246576,-500.0,0.00018092,2]
[350291494,1737772246585,-500.0,0.00018092,2]
[350291496,1737772246594,-500.0,0.00018092,2]
[350291498,1737772246603,-500.0,0.00018092,2]
[350291500,1737772246613,-501.37458637,0.00018092,2]
[350291502,1737772246622,-151.551673,0.00018092,2]
[350291504,1737772246631,-500.0,0.00018092,2]
[350291506,1737772246640,-500.0,0.00018092,2]
[350291508,1737772246649,-228.523966,0.00018092,2]
[350291510,1737772246659,-500.0,0.00018092,2]
[350291512,1737772246668,-500.0,0.00018092,2]
[350291514,1737772246677,-500.0,0.00018092,2]
[350291516,1737772246686,-192.74450553,0.00018092,2]
[350291518,1737772246695,-500.0,0.00018092,2]
[350291520,1737772246704,-500.0,0.00018092,2]
[350291522,1737772246713,-160.551007,0.00018092,2]
[350291524,1737772246722,-160.551007,0.00018092,2]
[350291526,1737772246734,-151.0,0.00018092,2]
[350291528,1737772246743,-566.07,0.00018092,2]
[350291530,1737772246752,-160.551007,0.00018092,2]
[350291532,1737772246761,-151.0,0.00018092,2]
[350291534,1737772246771,-500.0,0.00018092,2]
[350291536,1737772246781,-151.0,0.00018092,2]
[350291538,1737772246790,-160.551007,0.00018092,2]
[350291540,1737772246800,-160.551007,0.00018092,2]
[350291541,1737772246810,-160.551007,0.00018092,2]
[350291542,1737772246819,-500.0,0.00018092,2]
[350291543,1737772246828,-494.46642385,0.00018092,2]
[350291544,1737772246842,-5.53357615,0.00018092,2]
[350291545,1737772246852,-151.0,0.00018092,2]
[350291546,1737772246862,-151.0,0.00018092,2]
[350291547,1737772246871,-151.0,0.00018092,2]
[350291548,1737772246880,-43.25642385,0.00018092,2]
[350291575,1737772247155,-23.50681846,0.00018092,2]
[350291609,1737772247468,-433.23675769,0.00018092,2]
[350291612,1737772247479,-500.0,0.00018092,2]
[350291614,1737772247489,-500.0,0.00018092,2]
[350291615,1737772247500,-500.0,0.00018092,2]
[350291618,1737772247509,-500.0,0.00018092,2]
[350291620,1737772247519,-502.72770514,0.00018092,2]
[350291622,1737772247529,-500.0,0.00018092,2]
[350291624,1737772247539,-500.0,0.00018092,2]
[350291626,1737772247548,-151.0,0.00018092,2]
[350291627,1737772247560,-154.59356,0.00018092,2]
[350291630,1737772247570,-452.66761971,0.00018092,2]
[350292088,1737772311732,338.556,0.000172,2]
[350292090,1737772528743,10000.0,0.000176,2]
[350292091,1737772540518,10000.0,0.000176,2]
[350292092,1737772553275,10000.0,0.000176,2]
[350292093,1737772676164,10000.0,0.00018,30]
[350292094,1737772688287,10000.0,0.000176,2]
[350292095,1737772711600,1246.1867866,0.00017089,2]
[350292096,1737772732120,2533.307,0.00024,120]
[350292120,1737772974487,324.669,0.000172,2]
[350292121,1737773024596,314.6699921,0.00017062,2]
[350292122,1737773056955,205.57529099,0.00017453,2]
[350292123,1737773065132,205.57529099,0.00017453,2]
[350292124,1737773091953,1385.60124889,0.000175,2]
[350292149,1737773338214,222.479747,0.00013973,2]
[350292183,1737773432180,-518.44056096,0.00017985,3]
[350292184,1737773432194,-383.867408,0.00017986,2]
[350292186,1737773432206,-300.0,0.00018084,2]
[350292188,1737773432215,-500.0,0.00018085,2]
[350292190,1737773432225,-500.0,0.00018085,2]
[350292192,1737773432236,-397.69203104,0.00018085,2]
[350292195,1737773432258,-272.30796896,0.00018085,2]
[350292197,1737773432267,-662.13787981,0.00018085,2]
[350292200,1737773432285,-3022.50212019,0.00018085,2]
[350292202,1737773432294,-1000.0,0.00018085,7]
[350292204,1737773432303,-1452.41,0.00018085,2]
[350292206,1737773432313,-500.0,0.00018085,2]
[350292208,1737773432322,-1849.3,0.00018085,2]
[350292210,1737773432331,-500.0,0.00018085,2]
[350292212,1737773432343,-500.0,0.00018085,2]
[350292214,1737773432352,-570.56,0.00018085,2]
[350292216,1737773432361,-500.0,0.00018085,2]
[350292218,1737773432373,-500.0,0.00018085,2]
[350292220,1737773432382,-5059.68,0.00018085,2]
[350292222,1737773432391,-811.84,0.00018085,2]
[350292224,1737773432406,-515.26,0.00018085,2]
[350292226,1737773432415,-500.0,0.00018086,2]
[350292228,1737773432424,-523.63,0.00018086,2]
[350292230,1737773432434,-498.51213756,0.00018086,2]
[350292232,1737773432443,-500.0,0.00018086,2]
[350292234,1737773432452,-500.0,0.00018086,2]
[350292236,1737773432462,-500.0,0.00018086,2]
[350292238,1737773432471,-500.0,0.00018086,2]
[350292240,1737773432481,-500.0,0.00018086,2]
[350292242,1737773432490,-500.0,0.00018086,2]
[350292244,1737773432499,-500.0,0.00018086,2]
[350292246,1737773432508,-500.0,0.00018086,2]
[350292248,1737773432517,-500.0,0.00018086,2]
[350292250,1737773432526,-500.0,0.00018086,2]
[350292252,1737773432535,-200.0,0.00018086,2]
[350292254,1737773432545,-500.0,0.00018086,2]
[350292256,1737773432554,-895.74345696,0.00018086,2]
[350292258,1737773432565,-8281.52654304,0.00018086,2]
[350292260,1737773432575,-500.0,0.00018086,2]
[350292262,1737773432584,-500.0,0.00018086,2]
[350292265,1737773432593,-3360.04,0.00018086,2]
[350292267,1737773432604,-500.0,0.00018086,2]
[350292269,1737773432617,-500.0,0.00018086,2]
[350292271,1737773432626,-1979.08,0.00018086,2]
[350292273,1737773432635,-500.0,0.00018086,2]
[350292275,1737773432645,-500.0,0.00018086,2]
[350292277,1737773432654,-500.0,0.00018086,2]
[350292279,1737773432663,-4315.56,0.00018086,2]
[350292281,1737773432672,-523.86231498,0.00018086,2]
[350292283,1737773432682,-257.32853356,0.00018086,2]
[350292285,1737773432691,-1488.51,0.00018086,2]
[350292287,1737773432700,-500.0,0.00018086,2]
[350292289,1737773432709,-500.0,0.00018086,2]
[350292291,1737773432719,-500.0,0.00018086,2]
[350292293,1737773432728,-500.0,0.00018086,2]
[350292295,1737773432737,-500.0,0.00018086,2]
[350292297,1737773432746,-500.0,0.00018086,2]
[350292299,1737773432755,-500.0,0.00018086,2]
[350292301,1737773432764,-500.0,0.00018086,2]
[350292303,1737773432774,-500.0,0.00018086,2]
[350292305,1737773432783,-500.0,0.00018086,2]
[350292307,1737773432792,-3538.24,0.00018086,2]
[350292309,1737773432803,-500.0,0.00018086,2]
[350292311,1737773432812,-500.0,0.00018086,2]
[350292313,1737773432822,-1316.37,0.00018086,2]
[350292315,1737773432831,-500.0,0.00018086,2]
[350292317,1737773432841,-500.0,0.00018086,2]
[350292319,1737773432850,-1181.26,0.00018086,2]
[350292321,1737773432859,-230.15198254,0.00018086,2]
[350292323,1737773432870,-500.0,0.00018086,2]
[350292325,1737773432879,-3747.14,0.00018086,2]
[350292327,1737773432889,-500.0,0.00018086,2]
[350292329,1737773432898,-500.0,0.00018086,2]
[350292331,1737773432908,-5566.4,0.00018086,2]
[350292333,1737773432917,-743.98,0.00018086,2]
[350292335,1737773432927,-500.0,0.00018086,2]
[350292337,1737773432936,-507.43371814,0.00018086,2]
[350292339,1737773432946,-501.57866596,0.00018086,2]
[350292341,1737773432955,-500.0,0.00018086,2]
[350292343,1737773432964,-500.0,0.00018086,2]
[350292345,1737773432974,-500.0,0.00018086,2]
[350292347,1737773432983,-500.0,0.00018086,2]
[350292349,1737773432992,-500.0,0.00018086,2]
[350292351,1737773433001,-1700.5,0.00018086,2]
[350292353,1737773433010,-500.0,0.00018086,2]
[350292355,1737773433020,-500.0,0.00018086,2]
[350292357,1737773433029,-3789.97,0.00018086,2]
[350292359,1737773433038,-500.0,0.00018086,2]
[350292361,1737773433048,-2261.66,0.00018086,2]
[350292363,1737773433057,-500.0,0.00018086,2]
[350292365,1737773433067,-1709.33,0.00018086,2]
[350292367,1737773433076,-500.0,0.00018086,2]
[350292369,1737773433086,-500.0,0.00018086,2]
[350292371,1737773433096,-500.0,0.00018086,2]
[350292373,1737773433106,-728.24,0.00018086,2]
[350292375,1737773433117,-1017.18,0.00018086,2]
[350292377,1737773433126,-570.14,0.00018086,2]
[350292379,1737773433136,-500.0,0.00018087,2]
[350292381,1737773433147,-500.0,0.00018087,2]
[350292383,1737773433160,-500.0,0.00018087,2]
[350292385,1737773433170,-500.0,0.00018087,2]
[350292387,1737773433179,-500.0,0.00018087,2]
[350292389,1737773433189,-500.0,0.00018087,2]
[350292391,1737773433199,-795.62,0.00018087,2]
[350292393,1737773433208,-500.0,0.00018087,2]
[350292395,1737773433218,-515.81,0.00018087,2]
[350292397,1737773433228,-17.65208279,0.00018087,2]
[350292882,1737773438010,-978.75395275,0.00018086,2]
[350292884,1737773438021,-939.19604725,0.00018086,2]
[350292886,1737773438031,-500.0,0.00018086,2]
[350292888,1737773438040,-644.13791721,0.00018087,2]
[350292890,1737773438049,-406.18133954,0.00018087,2]
[350292893,1737773438060,-549.22866046,0.00018087,2]
[350292895,1737773438070,-224.34569274,0.00018087,2]
[350292897,1737773438081,-413.300005,0.00018087,2]
[350292899,1737773438093,-17.98430226,0.00018087,2]
[350292901,1737773438102,-500.0,0.00018087,2]
[350292903,1737773438111,-57.70319534,0.00018087,2]
[350293389,1737773442979,-500.0,0.00018085,2]
[350293391,1737773442990,-153.90388367,0.00018086,2]
[350295077,1737773637329,311.077,0.0001719,2]
[350295078,1737773753574,375.85887825,0.00017555,2]
[350295079,1737773766291,317.823,0.0001719,2]
[350295080,1737773789698,8365.3101161,0.00016984,2]
[350295086,1737773858987,3233.7291624,0.00016974,2]
[350295087,1737774013059,262.64638907,0.00017472,2]
[350295088,1737774071481,250.0,0.00016729,2]
[350295089,1737774077976,267.792973,0.00016974,2]
[350295090,1737774124356,334.8,0.00024,120]
[350295094,1737774252734,211.355759,0.00013973,2]
[350295095,1737774426272,168.79144278,0.00017472,2]
[350295097,1737774434054,324.778,0.0001719,2]
[350295126,1737774629506,113644.20952816,0.000175,2]
[350295144,1737774632335,-500.0,0.00017648,2]
[350295146,1737774632345,-299.24642747,0.00017648,2]
[350295148,1737774632356,-160.0,0.00017655,3]
[350295151,1737774632366,-1677.0467847,0.00017827,2]
[350295153,1737774632376,-335.883982,0.00017886,2]
[350295155,1737774632386,-287.92131884,0.000179,2]
[350295157,1737774632395,-160.0,0.00017905,4]
[350295159,1737774632404,-300.0,0.00017984,2]
[350295161,1737774632414,-22195.40518964,0.00017985,2]
[350295769,1737774638163,-11749.80352714,0.00017985,2]
[350295771,1737774638174,-500.0,0.00017985,2]
[350295773,1737774638184,-500.0,0.00017985,2]
[350295775,1737774638194,-500.0,0.00017985,2]
[350295777,1737774638205,-500.0,0.00017985,2]
[350295779,1737774638214,-500.0,0.00017985,2]
[350295781,1737774638223,-500.0,0.00017985,2]
[350295783,1737774638233,-603.14636225,0.00017985,2]
[350295785,1737774638243,-500.0,0.00017985,2]
[350295787,1737774638252,-500.0,0.00017985,2]
[350295789,1737774638262,-500.0,0.00017985,2]
[350295791,1737774638272,-474.82582246,0.00017985,2]
[350295793,1737774638282,-500.0,0.00017985,2]
[350295795,1737774638292,-500.0,0.00017985,2]
[350295797,1737774638302,-500.0,0.00017985,2]
[350295799,1737774638311,-3166.24993241,0.00017986,5]
[350295801,1737774638320,-500.0,0.00017986,2]
[350295803,1737774638331,-8678.99,0.00017986,2]
[350295805,1737774638340,-501.83531564,0.00017986,2]
[350295807,1737774638350,-500.0,0.00017986,2]
[350295809,1737774638359,-500.0,0.00017986,2]
[350295811,1737774638369,-4240.05,0.00017986,2]
[350295813,1737774638379,-500.0,0.00017986,2]
[350295815,1737774638388,-3322.55,0.00017986,2]
[350295817,1737774638398,-500.0,0.00017986,2]
[350295819,1737774638409,-500.0,0.00017986,2]
[350295821,1737774638419,-551.51,0.00017986,2]
[350295823,1737774638429,-1959.76,0.00017986,2]
[350295825,1737774638439,-500.0,0.00017986,2]
[350295827,1737774638448,-501.73971534,0.00017986,2]
[350295829,1737774638458,-1468.43,0.00017986,2]
[350295831,1737774638467,-500.0,0.00017986,2]
[350295833,1737774638476,-500.0,0.00017986,2]
[350295835,1737774638485,-500.0,0.00017986,2]
[350295837,1737774638495,-500.0,0.00017986,2]
[350295839,1737774638504,-500.0,0.00017986,2]
[350295841,1737774638515,-1228.0,0.00017986,2]
[350295843,1737774638524,-2184.73,0.00017986,2]
[350295845,1737774638534,-500.0,0.00017986,2]
[350295847,1737774638543,-1296.94,0.00017986,2]
[350295849,1737774638553,-500.0,0.00017986,2]
[350295851,1737774638562,-500.0,0.00017986,2]
[350295853,1737774638571,-3760.02,0.00017986,2]
[350295855,1737774638580,-5639.95,0.00017986,2]
[350295857,1737774638590,-500.0,0.00017986,2]
[350295859,1737774638604,-500.0,0.00017986,2]
[350295861,1737774638616,-500.0,0.00017986,2]
[350295863,1737774638627,-500.0,0.00017986,2]
[350295866,1737774638637,-500.0,0.00017986,2]
[350295867,1737774638646,-500.0,0.00017986,2]
[350295869,1737774638657,-500.0,0.00017986,2]
[350295871,1737774638666,-500.0,0.00017986,2]
[350295873,1737774638678,-500.0,0.00017986,2]
[350295876,1737774638689,-500.0,0.00017986,2]
[350295877,1737774638698,-500.0,0.00017986,2]
[350295879,1737774638708,-500.0,0.00017986,2]
[350295881,1737774638717,-522.75511049,0.00017986,2]
[350295884,1737774638727,-500.0,0.00017986,2]
[350295885,1737774638746,-644.43990616,0.00017986,2]
[350295887,1737774638755,-682.29,0.00017986,2]
[350295890,1737774638766,-3665.8,0.00017986,2]
[350295892,1737774638776,-500.0,0.00017986,2]
[350295894,1737774638785,-500.0,0.00017986,2]
[350295896,1737774638794,-1000.0,0.00017986,7]
[350295897,1737774638804,-1759.27,0.00017986,2]
[350295899,1737774638813,-500.0,0.00017986,2]
[350295901,1737774638823,-1448.78,0.00017986,2]
[350295903,1737774638833,-500.0,0.00017986,2]
[350295905,1737774638842,-570.09,0.00017986,2]
[350295907,1737774638851,-1918.87,0.00017986,2]
[350295909,1737774638860,-3928.58,0.00017986,2]
[350295911,1737774638870,-2349.83,0.00017986,2]
[350295913,1737774638879,-500.0,0.00017986,2]
[350295915,1737774638888,-500.0,0.00017986,2]
[350295917,1737774638901,-571.4,0.00017986,2]
[350295919,1737774638910,-502.23,0.00017986,2]
[350295921,1737774638919,-1811.08,0.00017986,2]
[350295923,1737774638929,-500.0,0.00017986,2]
[350295925,1737774638938,-500.0,0.00017986,2]
[350295927,1737774638948,-500.0,0.00017986,2]
[350295929,1737774638958,-500.0,0.00017986,2]
[350295931,1737774638968,-500.0,0.00017986,2]
[350295933,1737774638978,-609.35,0.00017986,2]
[350295935,1737774638987,-1003.19,0.00017986,2]
[350295937,1737774638996,-500.0,0.00017986,2]
[350295939,1737774639005,-5233.58,0.00017986,2]
[350295941,1737774639015,-500.0,0.00017986,2]
[350295943,1737774639024,-1899.21,0.00017986,2]
[350295945,1737774639034,-809.41,0.00017986,2]
[350295947,1737774639043,-500.0,0.00017986,2]
[350295949,1737774639052,-500.0,0.00017986,2]
[350295951,1737774639062,-436.57821435,0.00017986,2]
[350295953,1737774639071,-500.0,0.00017986,2]
[350295955,1737774639081,-185.500245,0.00017986,2]
[350295957,1737774639090,-332.66300689,0.00017986,2]
[350295959,1737774639100,-13416.22345979,0.00017987,5]
[350295961,1737774639109,-514.62,0.00017987,2]
[350295963,1737774639119,-500.0,0.00017987,2]
[350295965,1737774639129,-500.0,0.00017987,2]
[350295967,1737774639139,-517.86894831,0.00017987,2]
[350295970,1737774639149,-543.48,0.00017987,2]
[350295972,1737774639159,-500.0,0.00017987,2]
[350295974,1737774639167,-500.0,0.00017987,2]
[350295975,1737774639175,-158.34884817,0.00017987,2]
[350295977,1737774639184,-500.0,0.00017987,2]
[350295979,1737774639192,-500.0,0.00017987,2]
[350295981,1737774639202,-500.0,0.00017987,2]
[350295984,1737774639212,-500.0,0.00017987,2]
[350295986,1737774639222,-500.0,0.00017987,2]
[350295987,1737774639231,-500.0,0.00017987,2]
[350295990,1737774639242,-500.0,0.00017987,2]
[350295992,1737774639252,-507.20707268,0.00017987,2]
[350295994,1737774639262,-500.0,0.00017987,2]
[350295996,1737774639272,-500.0,0.00017987,2]
[350295998,1737774639282,-500.0,0.00017987,2]
[350296000,1737774639291,-500.0,0.00017987,2]
[350296002,1737774639301,-500.0,0.00017987,2]
[350296004,1737774639311,-500.0,0.00017987,2]
[350296006,1737774639321,-850.34,0.00017987,2]
[350296008,1737774639331,-500.0,0.00017987,2]
[350296010,1737774639340,-500.0,0.00017987,2]